fUST/lending_fUST_20250602
["ID","MTS","AMOUNT","RATE_DAILY","PERIOD"]
[363741186,1748856642702,-430.0,0.0001863,2]
[363741188,1748856642712,-921.99,0.0001863,2]
[363741190,1748856642722,-976.30122555,0.00018831,2]
[363741191,1748856642734,-430.0,0.00018904,2]
[363741192,1748856642744,-255.14,0.00018904,2]
[363741193,1748856642754,-430.0,0.00018904,2]
[363741194,1748856642764,-586.67,0.00018904,2]
[363741195,1748856642775,-698.51,0.00018904,2]
[363741198,1748856642785,-487.59,0.00018904,2]
[363741199,1748856642795,-430.0,0.00018904,2]
[363741200,1748856642805,-430.0,0.00018904,2]
[363741202,1748856642815,-430.0,0.00018904,2]
[363741204,1748856642823,-487.92,0.00018904,2]
[363741206,1748856642833,-430.0,0.00018904,2]
[363741208,1748856642842,-693.28,0.00018904,2]
[363741210,1748856642852,-1925.46,0.00018904,2]
[363741212,1748856642861,-430.0,0.00018904,2]
[363741214,1748856642871,-5560.67,0.00018904,2]
[363741216,1748856642881,-674.29,0.00018904,2]
[363741218,1748856642891,-576.85,0.00018904,2]
[363741220,1748856642902,-430.0,0.00018904,2]
[363741221,1748856642913,-547.9,0.00018904,2]
[363741222,1748856642924,-430.0,0.00018904,2]
[363741223,1748856642933,-430.0,0.00018904,2]
[363741224,1748856642943,-1385.1,0.00018904,2]
[363741225,1748856642953,-479.6,0.00018904,2]
[363741226,1748856642963,-430.0,0.00018904,2]
[363741227,1748856642975,-430.0,0.00018904,2]
[363741228,1748856642984,-1823.62,0.00018904,2]
[363741229,1748856642994,-1147.24,0.00018904,2]
[363741230,1748856643003,-1350.96,0.00018904,2]
[363741231,1748856643013,-621.4,0.00018904,2]
[363741232,1748856643024,-430.0,0.00018904,2]
[363741233,1748856643036,-921.99,0.00018904,2]
[363741234,1748856643046,-701.11,0.00019026,2]
[363741235,1748856643056,-1100.0,0.00019033,2]
[363741236,1748856643065,-548.39645406,0.00019044,2]
[363741237,1748856643075,-976.30122555,0.00019072,2]
[363741238,1748856643085,-587.0,0.00019125,2]
[363741239,1748856643095,-587.0,0.00019125,2]
[363741240,1748856643105,-500.0,0.00019178,2]
[363741241,1748856643115,-500.0,0.00019178,2]
[363741242,1748856643124,-256.01877636,0.00019178,2]
[363741243,1748856643133,-500.0,0.00019178,2]
[363741244,1748856643143,-500.0,0.00019178,2]
[363741245,1748856643154,-430.0,0.00019178,2]
[363741246,1748856643164,-430.0,0.00019178,2]
[363741247,1748856643174,-586.67,0.00019178,2]
[363741248,1748856643184,-698.51,0.00019178,2]
[363741249,1748856643194,-487.59,0.00019178,2]
[363741250,1748856643203,-430.0,0.00019178,2]
[363741251,1748856643214,-430.0,0.00019178,2]
[363741252,1748856643225,-430.0,0.00019178,2]
[363741253,1748856643234,-487.92,0.00019178,2]
[363741254,1748856643244,-430.0,0.00019178,2]
[363741255,1748856643254,-693.28,0.00019178,2]
[363741256,1748856643263,-1925.46,0.00019178,2]
[363741257,1748856643273,-430.0,0.00019178,2]
[363741258,1748856643282,-5560.67,0.00019178,2]
[363741260,1748856643292,-500.0,0.00019178,2]
[363741262,1748856643302,-500.0,0.00019178,2]
[363741264,1748856643311,-500.0,0.00019178,2]
[363741266,1748856643320,-500.0,0.00019178,2]
[363741268,1748856643330,-500.0,0.00019178,2]
[363741270,1748856643340,-500.0,0.00019178,2]
[363741272,1748856643349,-500.0,0.00019178,2]
[363741274,1748856643359,-500.0,0.00019178,2]
[363741276,1748856643368,-214.59077891,0.00019178,2]
[363741278,1748856643378,-674.29,0.00019178,2]
[363741280,1748856643387,-450.0,0.00019178,2]
[363741282,1748856643397,-576.85,0.00019178,2]
[363741284,1748856643407,-430.0,0.00019178,2]
[363741286,1748856643417,-547.9,0.00019178,2]
[363741288,1748856643427,-430.0,0.00019178,2]
[363741290,1748856643436,-168.0966975,0.00019178,2]
[363741291,1748856643446,-430.0,0.00019178,2]
[363741292,1748856643456,-1385.1,0.00019178,2]
[363741293,1748856643465,-479.6,0.00019178,2]
[363741294,1748856643475,-430.0,0.00019178,2]
[363741295,1748856643485,-430.0,0.00019178,2]
[363741296,1748856643495,-1823.62,0.00019178,2]
[363741297,1748856643504,-1147.24,0.00019178,2]
[363741298,1748856643514,-1350.96,0.00019178,2]
[363741299,1748856643524,-621.4,0.00019178,2]
[363741300,1748856643533,-430.0,0.00019178,2]
[363741301,1748856643543,-921.99,0.00019178,2]
[363741302,1748856643553,-256.846751,0.00019178,2]
[363741303,1748856643564,-976.30122555,0.00019314,2]
[363741304,1748856643577,-430.0,0.00019452,2]
[363741305,1748856643588,-586.67,0.00019452,2]
[363741306,1748856643599,-698.51,0.00019452,2]
[363741307,1748856643610,-487.59,0.00019452,2]
[363741308,1748856643621,-430.0,0.00019452,2]
[363741309,1748856643630,-430.0,0.00019452,2]
[363741310,1748856643640,-430.0,0.00019452,2]
[363741311,1748856643650,-487.92,0.00019452,2]
[363741312,1748856643661,-430.0,0.00019452,2]
[363741313,1748856643670,-693.28,0.00019452,2]
[363741314,1748856643679,-1925.46,0.00019452,2]
[363741315,1748856643689,-430.0,0.00019452,2]
[363741316,1748856643698,-5560.67,0.00019452,2]
[363741317,1748856643707,-674.29,0.00019452,2]
[363741318,1748856643717,-576.85,0.00019452,2]
[363741319,1748856643726,-430.0,0.00019452,2]
[363741320,1748856643739,-547.9,0.00019452,2]
[363741321,1748856643748,-430.0,0.00019452,2]
[363741322,1748856643758,-1385.1,0.00019452,2]
[363741323,1748856643767,-479.6,0.00019452,2]
[363741324,1748856643779,-430.0,0.00019452,2]
[363741325,1748856643789,-430.0,0.00019452,2]
[363741326,1748856643798,-1823.62,0.00019452,2]
[363741327,1748856643809,-1147.24,0.00019452,2]
[363741328,1748856643819,-1350.96,0.00019452,2]
[363741329,1748856643829,-621.4,0.00019452,2]
[363741330,1748856643840,-430.0,0.00019452,2]
[363741331,1748856643850,-921.99,0.00019452,2]
[363741332,1748856643861,-268.223845,0.00019459,2]
[363741333,1748856643870,-268.223845,0.00019459,2]
[363741334,1748856643879,-8739.29641174,0.000195,2]
[363741335,1748856643889,-500.0,0.00019533,2]
[363741336,1748856643900,-500.0,0.00019533,2]
[363741337,1748856643909,-623.03304999,0.00019533,2]
[363741338,1748856643919,-500.0,0.0001955,2]
[363741339,1748856643928,-500.0,0.0001955,2]
[363741340,1748856643937,-976.30122555,0.00019555,2]
[363741341,1748856643947,-174.13578355,0.00019565,2]
[363741342,1748856643956,-400.70791248,0.00019607,2]
[363741343,1748856643967,-500.0,0.00019607,2]
[363741344,1748856643978,-500.0,0.00019631,2]
[363741345,1748856643987,-500.0,0.00019631,2]
[363741346,1748856643997,-500.0,0.00019636,2]
[363741347,1748856644007,-500.68447698,0.00019636,2]
[363741348,1748856644017,-450.50530877,0.00019636,2]
[363741349,1748856644027,-500.34728116,0.00019636,2]
[363741350,1748856644036,-160.22927135,0.00019636,2]
[363741351,1748856644045,-159.25883467,0.00019636,2]
[363741352,1748856644055,-173.1014856,0.00019643,2]
[363741353,1748856644064,-439.398,0.00019643,2]
[363741354,1748856644073,-500.0,0.00019673,2]
[363741355,1748856644084,-500.0,0.00019673,2]
[363741356,1748856644095,-12668.79298183,0.00019681,2]
[363741357,1748856644106,-842.5625,0.00019681,2]
[363741358,1748856644116,-423.56953423,0.00019681,2]
[363741359,1748856644125,-160.0,0.00019681,2]
[363741360,1748856644135,-160.0,0.00019681,2]
[363741361,1748856644144,-229.39799938,0.00019681,2]
[363741362,1748856644154,-160.0,0.00019682,2]
[363741363,1748856644164,-160.0,0.00019682,2]
[363741364,1748856644174,-27229.55499283,0.00019724,2]
[363741365,1748856644183,-430.0,0.00019726,2]
[363741366,1748856644193,-586.67,0.00019726,2]
[363741367,1748856644202,-698.51,0.00019726,2]
[363741368,1748856644211,-487.59,0.00019726,2]
[363741369,1748856644219,-430.0,0.00019726,2]
[363741370,1748856644229,-430.0,0.00019726,2]
[363741371,1748856644238,-430.0,0.00019726,2]
[363741372,1748856644248,-487.92,0.00019726,2]
[363741373,1748856644258,-430.0,0.00019726,2]
[363741374,1748856644267,-693.28,0.00019726,2]
[363741375,1748856644276,-1925.46,0.00019726,2]
[363741376,1748856644286,-430.0,0.00019726,2]
[363741377,1748856644295,-5560.67,0.00019726,2]
[363741378,1748856644305,-674.29,0.00019726,2]
[363741379,1748856644315,-576.85,0.00019726,2]
[363741380,1748856644325,-430.0,0.00019726,2]
[363741381,1748856644335,-547.9,0.00019726,2]
[363741382,1748856644345,-430.0,0.00019726,2]
[363741383,1748856644355,-1385.1,0.00019726,2]
[363741384,1748856644364,-479.6,0.00019726,2]
[363741385,1748856644373,-430.0,0.00019726,2]
[363741386,1748856644383,-430.0,0.00019726,2]
[363741387,1748856644393,-1823.62,0.00019726,2]
[363741388,1748856644404,-1147.24,0.00019726,2]
[363741389,1748856644503,-1350.96,0.00019726,2]
[363741390,1748856644513,-621.4,0.00019726,2]
[363741391,1748856644522,-430.0,0.00019726,2]
[363741392,1748856644532,-921.99,0.00019726,2]
[363741393,1748856644541,-236.62709331,0.00019732,2]
[363741394,1748856644550,-151.0,0.00019735,2]
[363741395,1748856644560,-151.0,0.00019735,2]
[363741396,1748856644569,-151.0,0.00019766,2]
[363741397,1748856644579,-273.13548576,0.00019766,2]
[363741398,1748856644588,-151.47158686,0.00019766,2]
[363741399,1748856644597,-207.4,0.00019766,2]
[363741400,1748856644608,-300.0,0.00019766,2]
[363741401,1748856644617,-300.0,0.00019766,2]
[363741402,1748856644627,-300.0,0.00019766,2]
[363741403,1748856644636,-500.0,0.00019766,2]
[363741404,1748856644646,-500.0,0.00019766,2]
[363741405,1748856644656,-302.91049612,0.00019766,2]
[363741406,1748856644665,-500.0,0.00019766,2]
[363741407,1748856644675,-500.0,0.00019766,2]
[363741408,1748856644684,-500.0,0.00019766,2]
[363741409,1748856644694,-500.0,0.00019766,2]
[363741410,1748856644703,-500.0,0.00019766,2]
[363741411,1748856644713,-500.0,0.00019766,2]
[363741412,1748856644722,-500.0,0.00019766,2]
[363741413,1748856644732,-500.0,0.00019766,2]
[363741414,1748856644742,-500.0,0.00019766,2]
[363741415,1748856644751,-500.0,0.00019766,2]
[363741416,1748856644760,-500.0,0.00019766,2]
[363741417,1748856644770,-500.0,0.00019766,2]
[363741418,1748856644781,-500.0,0.00019766,2]
[363741419,1748856644790,-500.0,0.00019766,2]
[363741420,1748856644799,-500.0,0.00019766,2]
[363741421,1748856644810,-500.0,0.00019766,2]
[363741422,1748856644819,-500.0,0.00019766,2]
[363741423,1748856644827,-500.0,0.00019766,2]
[363741424,1748856644835,-500.0,0.00019766,2]
[363741425,1748856644843,-500.0,0.00019766,2]
[363741426,1748856644851,-500.0,0.00019766,2]
[363741427,1748856644859,-500.0,0.00019766,2]
[363741428,1748856644867,-500.0,0.00019766,2]
[363741429,1748856644877,-500.0,0.00019766,2]
[363741430,1748856644886,-500.0,0.00019766,2]
[363741431,1748856644895,-500.0,0.00019766,2]
[363741432,1748856644905,-500.0,0.00019766,2]
[363741433,1748856644916,-500.0,0.00019766,2]
[363741434,1748856644925,-5000.0,0.00019766,2]
[363741435,1748856644935,-976.30122555,0.00019797,2]
[363741436,1748856644945,-151.0,0.00019853,13]
[363741437,1748856644955,-500.0,0.00019871,2]
[363741438,1748856644965,-399.31999595,0.00019871,2]
[363741439,1748856644975,-500.0,0.00019871,2]
[363741440,1748856644985,-500.0,0.00019886,2]
[363741441,1748856644997,-500.0,0.00019886,2]
[363741442,1748856645007,-500.0,0.00019886,2]
[363741443,1748856645016,-600.0,0.00019973,2]
[363741444,1748856645026,-500.0,0.00019973,2]
[363741445,1748856645036,-500.0,0.00019973,2]
[363741446,1748856645046,-500.0,0.00019973,2]
[363741447,1748856645056,-502.06570242,0.00019973,2]
[363741448,1748856645067,-500.0,0.00019973,2]
[363741449,1748856645076,-500.0,0.00019973,2]
[363741450,1748856645086,-500.0,0.00019973,2]
[363741451,1748856645097,-500.0,0.00019973,2]
[363741452,1748856645108,-500.0,0.00019973,2]
[363741453,1748856645118,-502.47866998,0.00019973,2]
[363741454,1748856645128,-266.83610799,0.00019973,2]
[363741455,1748856645149,-233.16389201,0.00019973,2]
[363741456,1748856645158,-502.48844896,0.00019973,2]
[363741457,1748856645168,-388.5901632,0.00019973,2]
[363741458,1748856645179,-111.4098368,0.00019973,2]
[363741459,1748856645189,-176.25974023,0.00019973,2]
[363741460,1748856645198,-500.0,0.00019973,2]
[363741461,1748856645208,-500.0,0.00019973,2]
[363741462,1748856645218,-500.0,0.00019973,2]
[363741463,1748856645227,-306.8507996,0.00019973,2]
[363741464,1748856645237,-160.24771387,0.00019973,2]
[363741465,1748856645247,-500.0,0.00019973,2]
[363741466,1748856645257,-500.0,0.00019973,2]
[363741467,1748856645266,-463.95392512,0.00019973,2]
[363741468,1748856645278,-36.04607488,0.00019973,2]
[363741469,1748856645288,-500.0,0.0001998,2]
[363741470,1748856645298,-9200.35392512,0.0002,2]
[363741471,1748856645309,-12220.45321539,0.0002,2]
[363741472,1748856645443,-430.0,0.00016438,2]
[363741473,1748856645453,-1087.19103013,0.00016986,2]
[363741527,1748856646538,-430.0,0.00016712,2]
[363741529,1748856646547,-33.68896987,0.00016986,2]
[363741531,1748856646557,-361.34,0.00016986,2]
[363741533,1748856646567,-1120.88,0.0001726,2]
[363741535,1748856646577,-1120.88,0.00017534,2]
[363741537,1748856646587,-1120.88,0.00017808,2]
[363741539,1748856646596,-1120.88,0.00018082,2]
[363741542,1748856646607,-1120.88,0.00018356,2]
[363741544,1748856646617,-1120.88,0.0001863,2]
[363741546,1748856646627,-1120.88,0.00018904,2]
[363741548,1748856646636,-1120.88,0.00019178,2]
[363741550,1748856646645,-690.93103013,0.00019452,2]
[363741640,1748856998243,158.386177,0.00013699,2]
[363741647,1748857140164,294.42244516,0.0001552,2]
[363741648,1748857202473,-163.04490308,0.00015741,2]
[363741649,1748857205686,-164.58,0.00015741,2]
[363741650,1748857208838,-226.27058142,0.00015741,2]
[363741651,1748857210863,-216.28331354,0.00015741,2]
[363741652,1748857213775,-189.68195928,0.00015741,2]
[363741653,1748857216506,-195.47736732,0.00015741,2]
[363741654,1748857219760,-162.22030046,0.00015741,2]
[363741655,1748857221882,-273.67816743,0.00015741,2]
[363741656,1748857224471,-195.08886055,0.00015741,2]
[363741657,1748857230617,-160.0,0.00015741,2]
[363741658,1748857238325,-277.44180626,0.00015741,2]
[363741659,1748857240534,-276.49783186,0.00015741,2]
[363741660,1748857246354,-335.09127445,0.00015741,2]
[363741661,1748857253873,-177.74579025,0.00015741,2]
[363741662,1748857256197,-231.03253923,0.00015741,2]
[363741663,1748857262048,-207.70455589,0.00015741,2]
[363741664,1748857263679,-162.77430179,0.00015741,2]
[363741665,1748857265876,-236.55050028,0.00015741,2]
[363741666,1748857268495,-155.3670742,0.00015741,2]
[363741667,1748857270047,-175.29,0.00015741,2]
[363741668,1748857279662,-300.0,0.00015741,2]
[363741669,1748857307143,195.4773673,0.00015153,2]
[363741670,1748857388767,4760.59653144,0.0001552,2]
[363741671,1748857441932,176.65346709,0.0001552,2]
[363741672,1748857600746,198.0269103,0.00015109,2]
[363741680,1748857743138,313.478468,0.00015519,2]
[363741682,1748857745483,218.51946146,0.00015519,2]
[363741715,1748857832502,-300.0,0.00015998,2]
[363741716,1748857832513,-300.0,0.00015998,2]
[363741717,1748857832524,-213.0,0.00015998,2]
[363741718,1748857832535,-300.0,0.00015998,2]
[363741719,1748857832549,-1200.0,0.00015998,2]
[363741720,1748857832559,-3435.30154762,0.00015999,2]
[363741721,1748857832570,-1000.0,0.00015999,2]
[363741722,1748857832581,-500.0,0.00015999,2]
[363741723,1748857832592,-205.42628788,0.00015999,2]
[363741724,1748857832602,-226.65713989,0.00015999,2]
[363741725,1748857832612,-500.0,0.00015999,2]
[363741726,1748857832623,-500.0,0.00015999,2]
[363741727,1748857832633,-300.0,0.00015999,2]
[363741728,1748857832643,-162.22030046,0.00015999,2]
[363741729,1748857832654,-195.08886055,0.00015999,2]
[363741730,1748857832665,-37640.44151637,0.00016,3]
[363741761,1748857838345,-440.58712392,0.00016,3]
[363741763,1748857838357,-11456.3,0.00016,3]
[363741773,1748857838455,-114663.99277635,0.00016,3]
[363741775,1748857838466,-12668.79298183,0.00016,3]
[363741777,1748857838476,-842.5625,0.00016,3]
[363741779,1748857838486,-425.26,0.00016218,2]
[363741781,1748857838496,-717.04479371,0.00016338,2]
[363741783,1748857838506,-160.0,0.00016437,2]
[363741785,1748857838515,-155.0,0.00016437,2]
[363741787,1748857838525,-371.18188898,0.00016438,2]
[363741789,1748857838535,-430.0,0.00016438,2]
[363741791,1748857838545,-430.0,0.00016438,2]
[363741793,1748857838554,-430.0,0.00016438,2]
[363741796,1748857838570,-413.16066226,0.00016438,2]
[363741798,1748857838584,-431.15028953,0.00016438,2]
[363741800,1748857838598,-431.43832889,0.00016438,2]
[363741803,1748857838611,-430.0,0.00016438,2]
[363741805,1748857838623,-430.0,0.00016438,2]
[363741807,1748857838637,-421.6133537,0.00016438,2]
[363741810,1748857838650,-430.0,0.00016438,2]
[363741812,1748857838663,-430.0,0.00016438,2]
[363741814,1748857838677,-430.0,0.00016438,2]
[363741817,1748857838691,-430.0,0.00016438,2]
[363741819,1748857838706,-430.0,0.00016438,2]
[363741822,1748857838721,-431.2969658,0.00016438,2]
[363741824,1748857838736,-430.55603492,0.00016438,2]
[363741827,1748857838749,-514.26358156,0.00016438,2]
[363741829,1748857838761,-430.0,0.00016438,2]
[363741831,1748857838773,-430.0,0.00016438,2]
[363741833,1748857838785,-430.0,0.00016438,2]
[363741836,1748857838798,-430.0,0.00016438,2]
[363741838,1748857838812,-430.0,0.00016438,2]
[363741840,1748857838825,-430.0,0.00016438,2]
[363741843,1748857838838,-481.2875179,0.00016438,2]
[363741845,1748857838849,-433.29841757,0.00016438,2]
[363741847,1748857838860,-430.0,0.00016438,2]
[363741849,1748857838873,-434.17738906,0.00016438,2]
[363741852,1748857838885,-430.0,0.00016438,2]
[363741854,1748857838899,-430.0,0.00016438,2]
[363741856,1748857838913,-430.0,0.00016438,2]
[363741859,1748857838928,-500.0,0.00016438,2]
[363741861,1748857838940,-440.5135868,0.00016438,2]
[363741863,1748857838954,-434.05691854,0.00016438,2]
[363741866,1748857838968,-430.0,0.00016438,2]
[363741868,1748857838980,-434.24943366,0.00016438,2]
[363741870,1748857838991,-372.75678389,0.00016438,2]
[363741872,1748857839002,-430.0,0.00016438,2]
[363741874,1748857839012,-438.32703417,0.00016438,2]
[363741877,1748857839026,-434.72684773,0.00016438,2]
[363741879,1748857839040,-430.0,0.00016438,2]
[363741880,1748857839053,-343.47116253,0.00016438,2]
[363741881,1748857839063,-430.0,0.00016438,2]
[363741882,1748857839075,-430.0,0.00016438,2]
[363741883,1748857839086,-430.0,0.00016438,2]
[363741884,1748857839097,-435.17569997,0.00016438,2]
[363741886,1748857839110,-430.0,0.00016438,2]
[363741888,1748857839123,-430.0,0.00016438,2]
[363741891,1748857839134,-430.0,0.00016438,2]
[363741893,1748857839147,-430.0,0.00016438,2]
[363741895,1748857839159,-430.0,0.00016438,2]
[363741897,1748857839170,-430.0,0.00016438,2]
[363741899,1748857839181,-430.0,0.00016438,2]
[363741902,1748857839195,-430.0,0.00016438,2]
[363741904,1748857839209,-430.0,0.00016438,2]
[363741906,1748857839221,-430.0,0.00016438,2]
[363741908,1748857839234,-401.6869302,0.00016438,2]
[363741911,1748857839247,-430.0,0.00016438,2]
[363741913,1748857839259,-430.0,0.00016438,2]
[363741915,1748857839271,-435.10445431,0.00016438,2]
[363741917,1748857839282,-430.0,0.00016438,2]
[363741919,1748857839293,-430.0,0.00016438,2]
[363741922,1748857839305,-430.0,0.00016438,2]
[363741924,1748857839318,-491.72568382,0.00016438,2]
[363741926,1748857839329,-261.80336129,0.00016438,2]
[363741928,1748857839341,-430.0,0.00016438,2]
[363741931,1748857839352,-433.57343259,0.00016438,2]
[363741933,1748857839364,-430.0,0.00016438,2]
[363741935,1748857839375,-430.0,0.00016438,2]
[363741937,1748857839387,-430.0,0.00016438,2]
[363741939,1748857839399,-430.0,0.00016438,2]
[363741942,1748857839411,-230.68110136,0.00016438,2]
[363741944,1748857839423,-430.0,0.00016438,2]
[363741946,1748857839434,-430.0,0.00016438,2]
[363741948,1748857839445,-430.0,0.00016438,2]
[363741950,1748857839458,-429.24339771,0.00016438,2]
[363741953,1748857839470,-430.0,0.00016438,2]
[363741955,1748857839481,-430.0,0.00016438,2]
[363741957,1748857839493,-430.0,0.00016438,2]
[363741959,1748857839504,-430.0,0.00016438,2]
[363741962,1748857839516,-430.0,0.00016438,2]
[363741964,1748857839527,-430.0,0.00016438,2]
[363741966,1748857839539,-234.94479302,0.00016438,2]
[363741968,1748857839550,-430.0,0.00016438,2]
[363741970,1748857839561,-430.0,0.00016438,2]
[363741972,1748857839573,-430.0,0.00016438,2]
[363741975,1748857839584,-430.0,0.00016438,2]
[363741977,1748857839596,-166.48390818,0.00016438,2]
[363741979,1748857839606,-430.0,0.00016438,2]
[363741981,1748857839618,-430.0,0.00016438,2]
[363741984,1748857839630,-430.0,0.00016438,2]
[363741986,1748857839642,-430.0,0.00016438,2]
[363741988,1748857839653,-430.0,0.00016438,2]
[363741990,1748857839665,-738.9,0.00016438,2]
[363741993,1748857839677,-430.0,0.00016438,2]
[363741995,1748857839689,-569.47,0.00016438,2]
[363741997,1748857839702,-430.0,0.00016438,2]
[363741999,1748857839714,-430.0,0.00016438,2]
[363742001,1748857839726,-430.0,0.00016438,2]
[363742004,1748857839738,-430.0,0.00016438,2]
[363742006,1748857839751,-430.0,0.00016438,2]
[363742008,1748857839762,-430.0,0.00016438,2]
[363742010,1748857839774,-430.0,0.00016438,2]
[363742012,1748857839785,-430.0,0.00016438,2]
[363742014,1748857839797,-458.54,0.00016438,2]
[363742018,1748857839808,-208.96459367,0.00016438,2]
[363742021,1748857839820,-430.0,0.00016438,2]
[363742024,1748857839831,-430.0,0.00016438,2]
[363742027,1748857839842,-430.0,0.00016438,2]
[363742029,1748857839851,-430.0,0.00016438,2]
[363742031,1748857839860,-299.96,0.00016438,2]
[363742034,1748857839872,-590.55,0.00016438,2]
[363742036,1748857839881,-442.95,0.00016438,2]
[363742038,1748857839891,-430.0,0.00016438,2]
[363742059,1748857840079,-430.0,0.00016438,2]
[363742061,1748857840095,-430.0,0.00016438,2]
[363742063,1748857840105,-430.0,0.00016438,2]
[363742066,1748857840115,-430.0,0.00016438,2]
[363742067,1748857840124,-430.0,0.00016438,2]
[363742070,1748857840134,-700.56,0.00016438,2]
[363742071,1748857840146,-430.0,0.00016438,2]
[363742074,1748857840156,-430.0,0.00016438,2]
[363742075,1748857840166,-430.0,0.00016438,2]
[363742077,1748857840175,-430.0,0.00016438,2]
[363742079,1748857840187,-430.0,0.00016438,2]
[363742081,1748857840197,-430.0,0.00016438,2]
[363742083,1748857840208,-664.46,0.00016438,2]
[363742085,1748857840217,-430.0,0.00016438,2]
[363742088,1748857840229,-439.80104381,0.00016438,2]
[363742089,1748857840239,-280.24167405,0.00016438,2]
[363742091,1748857840248,-430.0,0.00016438,2]
[363742093,1748857840258,-6205.65,0.00016438,2]
[363742095,1748857840268,-430.0,0.00016438,2]
[363742098,1748857840278,-2246.54,0.00016438,2]
[363742099,1748857840288,-430.0,0.00016438,2]
[363742102,1748857840298,-430.0,0.00016438,2]
[363742104,1748857840308,-430.0,0.00016438,2]
[363742106,1748857840318,-251.92350618,0.00016438,2]
[363742108,1748857840328,-637.87,0.00016438,2]
[363742110,1748857840337,-758.45,0.00016438,2]
[363742112,1748857840347,-430.0,0.00016438,2]
[363742114,1748857840357,-430.0,0.00016438,2]
[363742116,1748857840367,-430.0,0.00016438,2]
[363742118,1748857840376,-1781.87,0.00016438,2]
[363742120,1748857840385,-494.08,0.00016438,2]
[363742122,1748857840395,-430.0,0.00016438,2]
[363742124,1748857840404,-1413.41,0.00016438,2]
[363742126,1748857840412,-430.0,0.00016438,2]
[363742128,1748857840423,-430.0,0.00016438,2]
[363742130,1748857840431,-404.39140681,0.00016438,2]
[363742132,1748857840440,-430.0,0.00016438,2]
[363742134,1748857840449,-430.0,0.00016438,2]
[363742136,1748857840459,-430.0,0.00016438,2]
[363742138,1748857840469,-430.0,0.00016438,2]
[363742140,1748857840478,-430.0,0.00016438,2]
[363742142,1748857840487,-430.0,0.00016438,2]
[363742144,1748857840497,-430.0,0.00016438,2]
[363742146,1748857840506,-430.0,0.00016438,2]
[363742148,1748857840516,-430.0,0.00016438,2]
[363742150,1748857840526,-510.0,0.00016438,2]
[363742152,1748857840536,-430.0,0.00016438,2]
[363742154,1748857840545,-2427.98,0.00016438,2]
[363742155,1748857840555,-1145.47,0.00016438,2]
[363742158,1748857840567,-1598.08,0.00016438,2]
[363742160,1748857840577,-430.0,0.00016438,2]
[363742162,1748857840586,-430.0,0.00016438,2]
[363742164,1748857840596,-541.35,0.00016438,2]
[363742166,1748857840605,-192.15165512,0.00016438,2]
[363742168,1748857840615,-430.0,0.00016438,2]
[363742170,1748857840625,-552.9,0.00016438,2]
[363742172,1748857840638,-430.0,0.00016438,2]
[363742174,1748857840647,-430.0,0.00016438,2]
[363742176,1748857840657,-1271.65,0.00016438,2]
[363742178,1748857840666,-400.19914163,0.00016438,2]
[363742180,1748857840676,-453.07215491,0.00016438,2]
[363742182,1748857840686,-430.0,0.00016438,2]